[Event "Late-Titled-Tuesday-Blitz-May-07-2024"]
[Site "Chess.com"]
[Date "2024.05.07"]
[Round "2"]
[White "gabduschew"]
[Black "grzechu96"]
[Result "0-1"]
[WhiteElo "2431"]
[BlackElo "2782"]
[TimeControl "180+1"]
[EndTime "14:15:11 PDT"]
[Termination "grzechu96 won by resignation"]

1. e4 {[%clk 0:03:00.9]} 1... c5 {[%clk 0:02:59.5]} 2. Nf3 {[%clk 0:03:00.7]}
2... d6 {[%clk 0:02:59.9]} 3. d4 {[%clk 0:03:01.1]} 3... cxd4 {[%clk 0:03:00.8]}
4. Nxd4 {[%clk 0:03:01.7]} 4... Nf6 {[%clk 0:02:59.3]} 5. Bd3 {[%clk 0:03:01.6]}
5... Nc6 {[%clk 0:02:58.5]} 6. Nxc6 {[%clk 0:03:02]} 6... bxc6 {[%clk
0:02:58.9]} 7. c4 {[%clk 0:03:02.6]} 7... e5 {[%clk 0:02:55.3]} 8. Nc3 {[%clk
0:03:02.6]} 8... Be7 {[%clk 0:02:55.8]} 9. O-O {[%clk 0:03:02.6]} 9... O-O
{[%clk 0:02:56.1]} 10. Kh1 {[%clk 0:02:48.4]} 10... Be6 {[%clk 0:02:53.6]} 11.
Qe2 {[%clk 0:02:45.4]} 11... Nd7 {[%clk 0:02:51.5]} 12. b3 {[%clk 0:02:42.9]}
12... Rb8 {[%clk 0:02:46.8]} 13. h3 {[%clk 0:02:41.6]} 13... Qc7 {[%clk
0:02:46.5]} 14. f4 {[%clk 0:02:41.1]} 14... exf4 {[%clk 0:02:46.6]} 15. Bxf4
{[%clk 0:02:40.8]} 15... Ne5 {[%clk 0:02:44.5]} 16. Bc2 {[%clk 0:02:38.7]} 16...
Ng6 {[%clk 0:02:34.2]} 17. Bh2 {[%clk 0:02:36]} 17... Bf6 {[%clk 0:02:34.6]} 18.
Qe3 {[%clk 0:01:21.6]} 18... Be5 {[%clk 0:02:32.4]} 19. Rad1 {[%clk 0:01:16.3]}
19... Bxh2 {[%clk 0:02:31.5]} 20. Kxh2 {[%clk 0:01:17.2]} 20... d5+ {[%clk
0:02:24.5]} 21. Kh1 {[%clk 0:01:14.7]} 21... dxc4 {[%clk 0:02:24.9]} 22. bxc4
{[%clk 0:01:10.8]} 22... Bxc4 {[%clk 0:02:25.8]} 23. Bd3 {[%clk 0:01:11.4]}
23... Be6 {[%clk 0:02:23.3]} 24. a4 {[%clk 0:01:02.6]} 24... Rb3 {[%clk
0:02:22]} 25. Qc5 {[%clk 0:00:58.7]} 25... Qe5 {[%clk 0:02:12.9]} 26. Qxe5
{[%clk 0:00:22.3]} 26... Nxe5 {[%clk 0:02:13.8]} 0-1

[Event "Late-Titled-Tuesday-Blitz-May-07-2024"]
[Site "Chess.com"]
[Date "2024.05.07"]
[Round "2"]
[White "vladgoncharov"]
[Black "klifus"]
[Result "1-0"]
[WhiteElo "2582"]
[BlackElo "2179"]
[TimeControl "180+1"]
[EndTime "14:15:18 PDT"]
[Termination "vladgoncharov won by checkmate"]

1. d4 {[%clk 0:03:00.9]} 1... Nf6 {[%clk 0:02:58.7]} 2. c4 {[%clk 0:03:00.9]}
2... g6 {[%clk 0:02:57.3]} 3. Nc3 {[%clk 0:03:01]} 3... Bg7 {[%clk 0:02:57.3]}
4. e4 {[%clk 0:03:00.8]} 4... d6 {[%clk 0:02:57.4]} 5. h3 {[%clk 0:03:01.1]}
5... O-O {[%clk 0:02:57.1]} 6. Be3 {[%clk 0:03:01.7]} 6... c5 {[%clk 0:02:53.1]}
7. d5 {[%clk 0:02:57.8]} 7... e6 {[%clk 0:02:52]} 8. Bd3 {[%clk 0:02:57.1]} 8...
exd5 {[%clk 0:02:51.5]} 9. cxd5 {[%clk 0:02:57.3]} 9... Re8 {[%clk 0:02:49.3]}
10. Nge2 {[%clk 0:02:57]} 10... c4 {[%clk 0:02:25]} 11. Bc2 {[%clk 0:02:55.5]}
11... b5 {[%clk 0:02:24.1]} 12. a3 {[%clk 0:02:52.5]} 12... Bd7 {[%clk 0:01:58]}
13. O-O {[%clk 0:02:49.9]} 13... Na6 {[%clk 0:01:56.9]} 14. Nd4 {[%clk
0:02:44.8]} 14... Nc5 {[%clk 0:01:54.2]} 15. Qf3 {[%clk 0:02:37.7]} 15... Rb8
{[%clk 0:01:46.4]} 16. Rad1 {[%clk 0:02:29]} 16... a5 {[%clk 0:01:44.6]} 17. Nc6
{[%clk 0:02:28]} 17... Bxc6 {[%clk 0:01:42.6]} 18. dxc6 {[%clk 0:02:26.2]} 18...
b4 {[%clk 0:01:33.8]} 19. axb4 {[%clk 0:02:23.2]} 19... axb4 {[%clk 0:01:32.7]}
20. Bxc5 {[%clk 0:02:22.4]} 20... bxc3 {[%clk 0:01:29.5]} 21. bxc3 {[%clk
0:02:20.6]} 21... Re6 {[%clk 0:01:16.5]} 22. e5 {[%clk 0:02:03.2]} 22... Ne8
{[%clk 0:01:15.5]} 23. exd6 {[%clk 0:01:54.9]} 23... Nxd6 {[%clk 0:01:15.3]} 24.
Rd5 {[%clk 0:01:53.7]} 24... Qc7 {[%clk 0:01:11.4]} 25. Rfd1 {[%clk 0:01:52.7]}
25... Ne8 {[%clk 0:00:59.9]} 26. Rd7 {[%clk 0:01:49.9]} 26... Qxc6 {[%clk
0:00:58.6]} 27. Qxf7+ {[%clk 0:01:46.6]} 27... Kh8 {[%clk 0:00:54]} 28. Bf8
{[%clk 0:01:45.2]} 28... Bxc3 {[%clk 0:00:35.9]} 29. Qxh7# {[%clk 0:01:44.3]}
1-0

[Event "Late-Titled-Tuesday-Blitz-May-07-2024"]
[Site "Chess.com"]
[Date "2024.05.07"]
[Round "2"]
[White "StellarChess"]
[Black "alexrustemov"]
[Result "0-1"]
[WhiteElo "2620"]
[BlackElo "2937"]
[TimeControl "180+1"]
[EndTime "14:15:19 PDT"]
[Termination "alexrustemov won by resignation"]

1. d4 {[%clk 0:03:00.9]} 1... g6 {[%clk 0:02:56.1]} 2. Nf3 {[%clk 0:03:00.3]}
2... Bg7 {[%clk 0:02:56.3]} 3. g3 {[%clk 0:03:00.7]} 3... c5 {[%clk 0:02:55.7]}
4. dxc5 {[%clk 0:02:59.6]} 4... Qa5+ {[%clk 0:02:55.1]} 5. Nbd2 {[%clk 0:02:59]}
5... Qxc5 {[%clk 0:02:55.3]} 6. Bg2 {[%clk 0:02:59.7]} 6... Nf6 {[%clk
0:02:54.9]} 7. O-O {[%clk 0:02:59.8]} 7... O-O {[%clk 0:02:55]} 8. e4 {[%clk
0:03:00.4]} 8... d6 {[%clk 0:02:54.3]} 9. h3 {[%clk 0:03:00.6]} 9... Nbd7 {[%clk
0:02:53.2]} 10. Re1 {[%clk 0:03:00.9]} 10... Qc7 {[%clk 0:02:49.8]} 11. c3
{[%clk 0:03:00]} 11... b6 {[%clk 0:02:38.2]} 12. Nb3 {[%clk 0:02:50.6]} 12...
Bb7 {[%clk 0:02:37.4]} 13. Nfd4 {[%clk 0:02:42.8]} 13... a6 {[%clk 0:02:36.2]}
14. f4 {[%clk 0:02:33.5]} 14... e5 {[%clk 0:02:35.2]} 15. Nc2 {[%clk 0:02:31]}
15... exf4 {[%clk 0:02:33.1]} 16. Bxf4 {[%clk 0:02:30.7]} 16... Ne5 {[%clk
0:02:32.9]} 17. Nb4 {[%clk 0:02:17.5]} 17... Rfe8 {[%clk 0:02:32]} 18. Bg5
{[%clk 0:01:53.5]} 18... Nc4 {[%clk 0:02:25.5]} 19. Bxf6 {[%clk 0:01:48.3]}
19... Bxf6 {[%clk 0:02:25.4]} 20. Nd5 {[%clk 0:01:47.6]} 20... Bxd5 {[%clk
0:02:25.1]} 21. Qxd5 {[%clk 0:01:40.8]} 21... Nxb2 {[%clk 0:02:13.6]} 22. e5
{[%clk 0:01:31.3]} 22... Bxe5 {[%clk 0:02:11.2]} 23. Qxa8 {[%clk 0:01:31.3]}
23... Rxa8 {[%clk 0:02:10.7]} 24. Bxa8 {[%clk 0:01:32.2]} 24... Qxc3 {[%clk
0:02:08.3]} 25. Re2 {[%clk 0:01:23.1]} 25... Qxg3+ {[%clk 0:02:03.6]} 26. Rg2
{[%clk 0:01:21.8]} 26... Qe3+ {[%clk 0:01:58.6]} 27. Kf1 {[%clk 0:01:10.9]}
27... Nd3 {[%clk 0:01:52.1]} 28. Rd1 {[%clk 0:01:04.3]} 28... Nf4 {[%clk
0:01:47.7]} 29. Rc2 {[%clk 0:00:52.7]} 29... Qxh3+ {[%clk 0:01:43.8]} 30. Ke1
{[%clk 0:00:49.8]} 30... Bc3+ {[%clk 0:01:40.1]} 31. Nd2 {[%clk 0:00:45]} 31...
Qe3+ {[%clk 0:01:38.8]} 0-1

[Event "Late-Titled-Tuesday-Blitz-May-07-2024"]
[Site "Chess.com"]
[Date "2024.05.07"]
[Round "2"]
[White "Slovafn"]
[Black "chegueps"]
[Result "1-0"]
[WhiteElo "2423"]
[BlackElo "2657"]
[TimeControl "180+1"]
[EndTime "14:15:19 PDT"]
[Termination "Slovafn won by resignation"]

1. Nf3 {[%clk 0:03:00.9]} 1... Nf6 {[%clk 0:02:57.3]} 2. c4 {[%clk 0:03:01.5]}
2... c5 {[%clk 0:02:57.1]} 3. g3 {[%clk 0:03:02.1]} 3... Nc6 {[%clk 0:02:56.6]}
4. Bg2 {[%clk 0:03:02.8]} 4... g6 {[%clk 0:02:57.1]} 5. O-O {[%clk 0:03:02.1]}
5... Bg7 {[%clk 0:02:57.7]} 6. Nc3 {[%clk 0:03:02.8]} 6... d5 {[%clk 0:02:55.5]}
7. d3 {[%clk 0:02:58.9]} 7... d4 {[%clk 0:02:53.7]} 8. Na4 {[%clk 0:02:57.7]}
8... Qd6 {[%clk 0:02:49.8]} 9. a3 {[%clk 0:02:44.6]} 9... O-O {[%clk 0:02:47]}
10. Rb1 {[%clk 0:02:41]} 10... Nd7 {[%clk 0:02:38.1]} 11. b4 {[%clk 0:02:22]}
11... b6 {[%clk 0:02:24.7]} 12. Ng5 {[%clk 0:02:09.8]} 12... cxb4 {[%clk
0:01:46.1]} 13. axb4 {[%clk 0:02:09.9]} 13... Bb7 {[%clk 0:01:45.6]} 14. c5
{[%clk 0:02:04]} 14... bxc5 {[%clk 0:01:40.8]} 15. bxc5 {[%clk 0:01:44.9]} 15...
Qc7 {[%clk 0:01:39.6]} 16. Qb3 {[%clk 0:01:25.1]} 16... Rab8 {[%clk 0:01:37.3]}
17. Bf4 {[%clk 0:01:16.8]} 17... e5 {[%clk 0:01:35.6]} 18. Bd2 {[%clk
0:01:14.9]} 18... Ba8 {[%clk 0:01:21.2]} 19. Qa2 {[%clk 0:01:13.6]} 19... a5
{[%clk 0:01:17.3]} 20. Rxb8 {[%clk 0:01:03.3]} 20... Rxb8 {[%clk 0:01:14.9]} 21.
Qxf7+ {[%clk 0:01:01.4]} 21... Kh8 {[%clk 0:01:12.7]} 22. Ne6 {[%clk 0:00:55]}
1-0

[Event "Late-Titled-Tuesday-Blitz-May-07-2024"]
[Site "Chess.com"]
[Date "2024.05.07"]
[Round "2"]
[White "BogdanDeac"]
[Black "MKlose11"]
[Result "1-0"]
[WhiteElo "3122"]
[BlackElo "2686"]
[TimeControl "180+1"]
[EndTime "14:15:37 PDT"]
[Termination "BogdanDeac won by resignation"]

1. d4 {[%clk 0:03:00.9]} 1... Nf6 {[%clk 0:01:02.7]} 2. Nf3 {[%clk 0:03:00]}
2... g6 {[%clk 0:01:01.6]} 3. e3 {[%clk 0:02:59.7]} 3... c5 {[%clk 0:01:00.7]}
4. Be2 {[%clk 0:03:00.6]} 4... b6 {[%clk 0:01:00.8]} 5. d5 {[%clk 0:02:59.2]}
5... Bg7 {[%clk 0:01:00.9]} 6. Nc3 {[%clk 0:02:59]} 6... d6 {[%clk 0:01:01.4]}
7. e4 {[%clk 0:02:58.9]} 7... O-O {[%clk 0:01:01.3]} 8. O-O {[%clk 0:02:59.1]}
8... Bg4 {[%clk 0:01:00.6]} 9. Re1 {[%clk 0:02:53.8]} 9... Nbd7 {[%clk
0:00:56.3]} 10. h3 {[%clk 0:02:50.8]} 10... Bxf3 {[%clk 0:00:56.2]} 11. Bxf3
{[%clk 0:02:51.7]} 11... Ne8 {[%clk 0:00:56.7]} 12. Be2 {[%clk 0:02:41.2]} 12...
Nc7 {[%clk 0:00:56.4]} 13. Nb5 {[%clk 0:02:39.7]} 13... a6 {[%clk 0:00:50.8]}
14. Nxc7 {[%clk 0:02:39.4]} 14... Qxc7 {[%clk 0:00:51.7]} 15. c3 {[%clk
0:02:38.1]} 15... b5 {[%clk 0:00:51.5]} 16. Qc2 {[%clk 0:02:38.2]} 16... Rfb8
{[%clk 0:00:50]} 17. Bd2 {[%clk 0:02:35.3]} 17... a5 {[%clk 0:00:46.8]} 18. a4
{[%clk 0:02:34.6]} 18... b4 {[%clk 0:00:40.6]} 19. Bb5 {[%clk 0:02:34]} 19...
Rb6 {[%clk 0:00:20.4]} 20. cxb4 {[%clk 0:02:28.8]} 20... axb4 {[%clk 0:00:20]}
21. Bxb4 {[%clk 0:02:28.3]} 21... Qb7 {[%clk 0:00:20.1]} 22. Bc3 {[%clk
0:02:26.1]} 22... Rb8 {[%clk 0:00:19.4]} 23. Rad1 {[%clk 0:02:18.3]} 23... Rxb5
{[%clk 0:00:18.5]} 24. axb5 {[%clk 0:02:17]} 24... Qxb5 {[%clk 0:00:19.4]} 25.
Ra1 {[%clk 0:02:17]} 25... Qb3 {[%clk 0:00:18.6]} 26. Qxb3 {[%clk 0:02:16.2]}
26... Rxb3 {[%clk 0:00:18.5]} 27. Ra7 {[%clk 0:02:16]} 27... Bxc3 {[%clk
0:00:17.8]} 28. bxc3 {[%clk 0:02:15.5]} 28... Nf6 {[%clk 0:00:16]} 29. Rxe7
{[%clk 0:02:04.1]} 29... Rxc3 {[%clk 0:00:16.2]} 30. Rc7 {[%clk 0:02:04.3]}
30... h5 {[%clk 0:00:12.1]} 31. Rc6 {[%clk 0:02:03.9]} 31... Ne8 {[%clk
0:00:12.3]} 32. e5 {[%clk 0:02:00.4]} 32... dxe5 {[%clk 0:00:11]} 33. Rc8 {[%clk
0:02:00.6]} 1-0

[Event "Late-Titled-Tuesday-Blitz-May-07-2024"]
[Site "Chess.com"]
[Date "2024.05.07"]
[Round "2"]
[White "TokChess"]
[Black "Annawel"]
[Result "0-1"]
[WhiteElo "2650"]
[BlackElo "3007"]
[TimeControl "180+1"]
[EndTime "14:15:38 PDT"]
[Termination "Annawel won by resignation"]

1. c4 {[%clk 0:02:58]} 1... Nf6 {[%clk 0:02:58.9]} 2. Nf3 {[%clk 0:02:57.3]}
2... g6 {[%clk 0:02:57.9]} 3. Nc3 {[%clk 0:02:57.5]} 3... Bg7 {[%clk 0:02:58.3]}
4. g3 {[%clk 0:02:58.2]} 4... O-O {[%clk 0:02:58.6]} 5. Bg2 {[%clk 0:02:58.9]}
5... d6 {[%clk 0:02:59.2]} 6. O-O {[%clk 0:02:56.9]} 6... e5 {[%clk 0:02:58.4]}
7. d3 {[%clk 0:02:57.6]} 7... a5 {[%clk 0:02:52.6]} 8. Rb1 {[%clk 0:02:56.8]}
8... c6 {[%clk 0:02:41.2]} 9. a3 {[%clk 0:02:55.2]} 9... Na6 {[%clk 0:02:41]}
10. b4 {[%clk 0:02:53.8]} 10... axb4 {[%clk 0:02:41.9]} 11. axb4 {[%clk
0:02:54.5]} 11... Nc7 {[%clk 0:02:42.3]} 12. b5 {[%clk 0:02:52.8]} 12... Re8
{[%clk 0:02:41.9]} 13. Qc2 {[%clk 0:02:51.3]} 13... h6 {[%clk 0:02:37.7]} 14.
Nd2 {[%clk 0:02:31.5]} 14... d5 {[%clk 0:02:32.4]} 15. cxd5 {[%clk 0:02:26.8]}
15... cxd5 {[%clk 0:02:31.1]} 16. b6 {[%clk 0:02:20.8]} 16... Ne6 {[%clk
0:02:31]} 17. Nf3 {[%clk 0:02:19.9]} 17... e4 {[%clk 0:02:14.9]} 18. dxe4 {[%clk
0:01:56.4]} 18... dxe4 {[%clk 0:02:14.3]} 19. Nxe4 {[%clk 0:01:51.4]} 19... Nxe4
{[%clk 0:02:13.9]} 20. Qxe4 {[%clk 0:01:51.5]} 20... Nd4 {[%clk 0:02:13.5]} 21.
Qh4 {[%clk 0:00:47.3]} 21... g5 {[%clk 0:02:12.3]} 22. Qh5 {[%clk 0:00:43.4]}
22... Nxe2+ {[%clk 0:02:12]} 23. Kh1 {[%clk 0:00:42.1]} 23... Bf5 {[%clk
0:02:11.7]} 24. Nxg5 {[%clk 0:00:15.3]} 24... Bg6 {[%clk 0:01:57.6]} 25. Qf3
{[%clk 0:00:14.8]} 25... hxg5 {[%clk 0:01:52.6]} 26. Rb5 {[%clk 0:00:10.9]}
26... Nd4 {[%clk 0:01:47.2]} 0-1

[Event "Late-Titled-Tuesday-Blitz-May-07-2024"]
[Site "Chess.com"]
[Date "2024.05.07"]
[Round "2"]
[White "Evandro_Barbosa"]
[Black "MagnusCarlsen"]
[Result "0-1"]
[WhiteElo "2694"]
[BlackElo "3208"]
[TimeControl "180+1"]
[EndTime "14:15:46 PDT"]
[Termination "MagnusCarlsen won by resignation"]

1. e4 {[%clk 0:02:55]} 1... c5 {[%clk 0:02:57.3]} 2. Nf3 {[%clk 0:02:54.8]} 2...
d6 {[%clk 0:02:50.6]} 3. d4 {[%clk 0:02:53.5]} 3... cxd4 {[%clk 0:02:51.5]} 4.
Nxd4 {[%clk 0:02:53.6]} 4... Nf6 {[%clk 0:02:51.7]} 5. Nc3 {[%clk 0:02:53.8]}
5... Bd7 {[%clk 0:02:52.2]} 6. Be2 {[%clk 0:02:49.4]} 6... Nc6 {[%clk
0:02:42.8]} 7. O-O {[%clk 0:02:47.3]} 7... g6 {[%clk 0:02:42.7]} 8. Nb3 {[%clk
0:02:46.4]} 8... Bg7 {[%clk 0:02:43]} 9. Re1 {[%clk 0:02:46.4]} 9... O-O {[%clk
0:02:43.4]} 10. Bf1 {[%clk 0:02:46.4]} 10... a6 {[%clk 0:02:43]} 11. Nd5 {[%clk
0:02:45.6]} 11... Rc8 {[%clk 0:02:42.4]} 12. c3 {[%clk 0:02:45.1]} 12... Ne5
{[%clk 0:02:40.2]} 13. a4 {[%clk 0:02:44]} 13... Re8 {[%clk 0:02:38.6]} 14. a5
{[%clk 0:02:42.1]} 14... Nxd5 {[%clk 0:02:38.3]} 15. exd5 {[%clk 0:02:41.5]}
15... h5 {[%clk 0:02:35.3]} 16. h3 {[%clk 0:02:33.2]} 16... Bb5 {[%clk
0:02:31.5]} 17. Bxb5 {[%clk 0:02:24.9]} 17... axb5 {[%clk 0:02:32.4]} 18. Nd4
{[%clk 0:02:23.1]} 18... Rc5 {[%clk 0:02:28.9]} 19. Nb3 {[%clk 0:02:12.1]} 19...
Rc4 {[%clk 0:02:25.7]} 20. Nd2 {[%clk 0:02:06.8]} 20... Rc8 {[%clk 0:02:23.3]}
21. Qb3 {[%clk 0:01:58.4]} 21... Qd7 {[%clk 0:02:19.5]} 22. Nf3 {[%clk
0:01:53.3]} 22... Nxf3+ {[%clk 0:02:18.7]} 23. gxf3 {[%clk 0:01:46.9]} 23...
Qxh3 {[%clk 0:02:18.2]} 24. Qxb5 {[%clk 0:01:45.6]} 24... Qxf3 {[%clk 0:02:15]}
25. Ra4 {[%clk 0:01:25.1]} 25... Rb8 {[%clk 0:02:11.5]} 26. Rae4 {[%clk
0:01:09.4]} 26... Be5 {[%clk 0:02:08.4]} 27. Qe2 {[%clk 0:01:03.1]} 27... Qf5
{[%clk 0:02:05.1]} 28. f4 {[%clk 0:01:01.5]} 28... Bf6 {[%clk 0:02:04.5]} 29.
Qd1 {[%clk 0:00:44.5]} 29... Rec8 {[%clk 0:02:02.6]} 30. c4 {[%clk 0:00:42.8]}
30... b5 {[%clk 0:02:01.7]} 31. axb6 {[%clk 0:00:29.1]} 31... Rxb6 {[%clk
0:02:01]} 32. Qe2 {[%clk 0:00:27.1]} 32... Rb3 {[%clk 0:01:58.7]} 33. Qg2 {[%clk
0:00:19.3]} 33... h4 {[%clk 0:01:53.3]} 0-1

[Event "Late-Titled-Tuesday-Blitz-May-07-2024"]
[Site "Chess.com"]
[Date "2024.05.07"]
[Round "2"]
[White "Cambek64"]
[Black "ilya2700"]
[Result "1-0"]
[WhiteElo "2523"]
[BlackElo "2262"]
[TimeControl "180+1"]
[EndTime "14:15:49 PDT"]
[Termination "Cambek64 won on time"]

1. e4 {[%clk 0:03:00.9]} 1... c5 {[%clk 0:00:06.8]} 2. Nf3 {[%clk 0:02:55.1]}
2... e6 {[%clk 0:00:06.7]} 3. d3 {[%clk 0:02:50.4]} 3... d5 {[%clk 0:00:06.5]}
4. Nbd2 {[%clk 0:02:50.6]} 4... Nc6 {[%clk 0:00:06.6]} 5. g3 {[%clk 0:02:51.1]}
5... Nf6 {[%clk 0:00:06.9]} 6. Bg2 {[%clk 0:02:51]} 6... Be7 {[%clk 0:00:07.5]}
7. O-O {[%clk 0:02:50.8]} 7... O-O {[%clk 0:00:07.9]} 8. Re1 {[%clk 0:02:51.3]}
8... b5 {[%clk 0:00:07.7]} 9. e5 {[%clk 0:02:51.5]} 9... Nd7 {[%clk 0:00:08]}
10. Nf1 {[%clk 0:02:52]} 10... a5 {[%clk 0:00:08.4]} 11. h4 {[%clk 0:02:52.6]}
11... b4 {[%clk 0:00:08.6]} 12. N1h2 {[%clk 0:02:52.3]} 12... a4 {[%clk
0:00:08.8]} 13. a3 {[%clk 0:02:46.5]} 13... Qa5 {[%clk 0:00:07.1]} 14. h5 {[%clk
0:02:42.8]} 14... h6 {[%clk 0:00:07.2]} 15. Ng4 {[%clk 0:02:41.7]} 15... Ba6
{[%clk 0:00:04.3]} 16. Bd2 {[%clk 0:02:27]} 16... c4 {[%clk 0:00:03.8]} 17. axb4
{[%clk 0:02:25.3]} 17... Bxb4 {[%clk 0:00:03.4]} 18. c3 {[%clk 0:02:24.8]} 18...
Be7 {[%clk 0:00:02.3]} 19. d4 {[%clk 0:02:24.6]} 19... Bb5 {[%clk 0:00:01.8]}
20. Nxh6+ {[%clk 0:02:11.4]} 20... gxh6 {[%clk 0:00:02.4]} 21. Bxh6 {[%clk
0:02:11]} 21... Rfb8 {[%clk 0:00:02.5]} 22. Ng5 {[%clk 0:02:06.8]} 22... Bf8
{[%clk 0:00:02.5]} 23. Qf3 {[%clk 0:02:00.8]} 23... Nd8 {[%clk 0:00:01.7]} 24.
Bxf8 {[%clk 0:01:57.7]} 24... Nxf8 {[%clk 0:00:01.8]} 25. Qf6 {[%clk 0:01:52.3]}
1-0

[Event "Late-Titled-Tuesday-Blitz-May-07-2024"]
[Site "Chess.com"]
[Date "2024.05.07"]
[Round "2"]
[White "ChEsper99"]
[Black "KHBR4"]
[Result "0-1"]
[WhiteElo "2306"]
[BlackElo "2733"]
[TimeControl "180+1"]
[EndTime "14:15:52 PDT"]
[Termination "KHBR4 won by resignation"]

1. e4 {[%clk 0:03:00]} 1... c5 {[%clk 0:02:59.4]} 2. Nf3 {[%clk 0:02:59.4]} 2...
d6 {[%clk 0:02:59.9]} 3. Bb5+ {[%clk 0:02:57.8]} 3... Nd7 {[%clk 0:03:00]} 4. a4
{[%clk 0:02:57.3]} 4... Nf6 {[%clk 0:02:59.1]} 5. Nc3 {[%clk 0:02:57.5]} 5... g6
{[%clk 0:02:59.5]} 6. O-O {[%clk 0:02:56.3]} 6... Bg7 {[%clk 0:03:00.1]} 7. a5
{[%clk 0:02:55.9]} 7... O-O {[%clk 0:03:00.2]} 8. Re1 {[%clk 0:02:51.4]} 8... a6
{[%clk 0:03:00.6]} 9. Bf1 {[%clk 0:02:48]} 9... b5 {[%clk 0:03:00.9]} 10. axb6
{[%clk 0:02:47.8]} 10... Nxb6 {[%clk 0:03:01.7]} 11. d3 {[%clk 0:02:48.2]} 11...
Bb7 {[%clk 0:03:02]} 12. Nd2 {[%clk 0:02:41.1]} 12... a5 {[%clk 0:03:02]} 13. g3
{[%clk 0:02:28.7]} 13... a4 {[%clk 0:03:01.9]} 14. Bg2 {[%clk 0:02:28.9]} 14...
Qc7 {[%clk 0:02:58.5]} 15. f4 {[%clk 0:02:29]} 15... Nfd7 {[%clk 0:02:54.6]} 16.
Nf3 {[%clk 0:02:24.3]} 16... a3 {[%clk 0:02:44.3]} 17. Qd2 {[%clk 0:02:17.9]}
17... Bc6 {[%clk 0:02:35.5]} 18. Rxa3 {[%clk 0:02:13.7]} 18... Rxa3 {[%clk
0:02:35.8]} 19. bxa3 {[%clk 0:02:14.5]} 19... Ra8 {[%clk 0:02:36.2]} 20. Bb2
{[%clk 0:02:08.7]} 20... Rb8 {[%clk 0:02:26]} 21. Rb1 {[%clk 0:01:57.8]} 21...
Qa7 {[%clk 0:02:26.3]} 22. Kh1 {[%clk 0:01:25]} 22... Na4 {[%clk 0:02:19.8]} 23.
Nxa4 {[%clk 0:01:22.9]} 23... Qxa4 {[%clk 0:02:18.4]} 24. c3 {[%clk 0:00:50.3]}
24... Qb3 {[%clk 0:02:17.3]} 25. e5 {[%clk 0:00:26.5]} 25... dxe5 {[%clk
0:02:11.5]} 26. Nxe5 {[%clk 0:00:22.3]} 26... Nxe5 {[%clk 0:02:09.5]} 27. fxe5
{[%clk 0:00:21.4]} 27... Bxg2+ {[%clk 0:02:07.7]} 28. Kxg2 {[%clk 0:00:21.5]}
28... Bxe5 {[%clk 0:02:08.2]} 29. d4 {[%clk 0:00:20.6]} 29... cxd4 {[%clk
0:02:07.4]} 30. cxd4 {[%clk 0:00:20.2]} 30... Bf6 {[%clk 0:02:01.9]} 31. h4
{[%clk 0:00:13.3]} 31... h5 {[%clk 0:02:02]} 32. Kh2 {[%clk 0:00:10.7]} 32...
Rb5 {[%clk 0:02:02]} 33. Qh6 {[%clk 0:00:07.7]} 33... Qc2+ {[%clk 0:01:59.6]}
34. Kh3 {[%clk 0:00:06.9]} 0-1

[Event "Late-Titled-Tuesday-Blitz-May-07-2024"]
[Site "Chess.com"]
[Date "2024.05.07"]
[Round "2"]
[White "PawnEatingZombie"]
[Black "Revan_2002"]
[Result "0-1"]
[WhiteElo "2263"]
[BlackElo "2719"]
[TimeControl "180+1"]
[EndTime "14:15:53 PDT"]
[Termination "Revan_2002 won by checkmate"]

1. e4 {[%clk 0:03:00.9]} 1... e5 {[%clk 0:02:56.8]} 2. Nf3 {[%clk 0:03:00.2]}
2... Nc6 {[%clk 0:02:57.3]} 3. Nc3 {[%clk 0:03:00.3]} 3... Nf6 {[%clk
0:02:56.7]} 4. Bb5 {[%clk 0:03:00.8]} 4... Bb4 {[%clk 0:02:56.1]} 5. O-O {[%clk
0:02:58.7]} 5... O-O {[%clk 0:02:55.5]} 6. Bxc6 {[%clk 0:02:56.2]} 6... dxc6
{[%clk 0:02:53.2]} 7. d3 {[%clk 0:02:55.3]} 7... Bd6 {[%clk 0:02:50.6]} 8. h3
{[%clk 0:02:45]} 8... Nd7 {[%clk 0:02:45.7]} 9. Kh1 {[%clk 0:02:29.1]} 9... c5
{[%clk 0:02:43.3]} 10. b3 {[%clk 0:02:29.4]} 10... Re8 {[%clk 0:02:42.6]} 11.
Qe2 {[%clk 0:02:17.9]} 11... Nf8 {[%clk 0:02:40.5]} 12. Nd5 {[%clk 0:02:12.2]}
12... Ne6 {[%clk 0:02:38.4]} 13. c3 {[%clk 0:01:56]} 13... c6 {[%clk 0:02:37.3]}
14. Ne3 {[%clk 0:01:54.7]} 14... Nf4 {[%clk 0:02:38]} 15. Qc2 {[%clk 0:01:53.6]}
15... Bf8 {[%clk 0:02:31.3]} 16. Rd1 {[%clk 0:01:52.5]} 16... f6 {[%clk
0:02:24.7]} 17. Bb2 {[%clk 0:01:49.8]} 17... Qc7 {[%clk 0:02:21.1]} 18. d4
{[%clk 0:01:44.1]} 18... exd4 {[%clk 0:02:13.5]} 19. cxd4 {[%clk 0:01:45]} 19...
cxd4 {[%clk 0:02:11.6]} 20. Nxd4 {[%clk 0:01:42.3]} 20... Qf7 {[%clk 0:02:10.4]}
21. Ndf5 {[%clk 0:01:33.6]} 21... Be6 {[%clk 0:01:59.4]} 22. Kh2 {[%clk
0:01:23.8]} 22... Rad8 {[%clk 0:01:57.7]} 23. g3 {[%clk 0:01:18.9]} 23... Ng6
{[%clk 0:01:53.3]} 24. h4 {[%clk 0:01:16.4]} 24... Ne5 {[%clk 0:01:46.8]} 25.
Kg2 {[%clk 0:01:13.3]} 25... g6 {[%clk 0:01:45.5]} 26. Nd4 {[%clk 0:01:10.5]}
26... Bc8 {[%clk 0:01:45.5]} 27. Nf3 {[%clk 0:01:05]} 27... Nxf3 {[%clk
0:01:33.1]} 28. Kxf3 {[%clk 0:01:05.9]} 28... Bh6 {[%clk 0:01:33]} 29. Nc4
{[%clk 0:01:00]} 29... f5 {[%clk 0:01:20.6]} 30. exf5 {[%clk 0:00:51.4]} 30...
Bxf5 {[%clk 0:01:16.7]} 31. Qc3 {[%clk 0:00:40.5]} 31... Be4+ {[%clk 0:01:11.4]}
32. Ke2 {[%clk 0:00:40.2]} 32... Bd3# {[%clk 0:01:11]} 0-1